bitfinex-derivatives/quotes_SOLF0:USTF0_20240927
["timestamp","ask_amount","ask_price","bid_price","bid_amount"]
[1727402460918,3.2266,154.92,154.82,4.0082]
[1727402460919,13.1685306,154.95,154.91,9.95]
[1727402461215,9.95,154.95,154.91,9.95]
[1727402461608,3.2262,154.94,154.91,9.95]
[1727402463422,3.2264,154.94,154.9,3.2269]
[1727402463917,3.2265,154.93,154.88,3.2273]
[1727402464123,3.2265,154.93,154.89,9.95]
[1727402465423,3.2267,154.92,154.85,10.97674686]
[1727402465620,13.1767,154.92,154.88,9.95]
[1727402466816,9.95,154.92,154.87,9.95]
[1727402467425,13.1767,154.92,154.87,9.95]
[1727402467629,13.1767,154.92,154.83,83.78607572]
[1727402467630,3.2267,154.92,154.88,9.95]
[1727402467923,3.2267,154.92,154.83,83.78607572]
[1727402467924,3.2264,154.93,154.9,9.95]
[1727402468923,3.2264,154.93,154.9,13.177]
[1727402470922,13.1764,154.93,154.9,13.177]
[1727402471126,9.95,154.91,154.86,6.8618565]
[1727402471328,9.95,154.9,154.84,9.95]
[1727402471527,2.6526,154.95,154.84,9.95]
[1727402471528,9.95,154.88,154.85,6.86225794]
[1727402471724,9.95,154.88,154.82,4.0082]
[1727402471926,1.3359,154.94,154.87,9.95]
[1727402472228,9.95,154.94,154.89,9.95]
[1727402472430,13.1762,154.94,154.9,3.2269]
[1727402474832,3.2262,154.94,154.91,3.2268]
[1727402475523,1.3359,155.0,154.93,9.95]
[1727402475726,9.95,154.98,154.93,9.95]
[1727402475924,9.95,154.97,154.92,9.95]
[1727402476534,13.1757,154.97,154.93,3.2262]
[1727402483333,9.95,154.96,154.91,3.2268]
[1727402483531,9.95,154.94,154.91,3.2268]
[1727402488637,3.28038661,154.96,154.91,9.95]
[1727402488833,9.95,154.96,154.91,9.95]
[1727402489035,1.3359,155.0,154.91,9.95]
[1727402489036,3.16850755,154.95,154.91,9.95]
[1727402489236,9.95,154.94,154.89,9.95]
[1727402489438,9.95,154.94,154.9,6.86308161]
[1727402489637,9.95,154.94,154.89,9.95]
[1727402489838,13.1763,154.94,154.9,3.2269]
[1727402490541,13.1763,154.94,154.91,3.2268]
[1727402491841,9.95,154.94,154.91,3.2268]
[1727402492142,3.2873806,154.95,154.87,9.95]
[1727402492435,9.95,154.94,154.89,9.95]
[1727402492737,9.95,154.94,154.91,3.2267]
[1727402493639,3.2259,154.96,154.92,3.2264]
[1727402493835,13.1759,154.96,154.92,3.2264]
[1727402494340,3.226,154.95,154.92,3.2264]
[1727402494536,9.95,154.94,154.92,3.2264]
[1727402495141,9.95,154.94,154.9,9.95]
[1727402495537,9.95,154.94,154.92,3.2266]
[1727402495739,9.95,154.94,154.9,9.95]
[1727402495941,13.10818037,154.96,154.91,9.95]
[1727402496240,13.10818037,154.96,154.93,3.2263]
[1727402497041,3.2254,154.98,154.94,3.226]
[1727402497244,9.95,154.97,154.94,3.226]
[1727402498547,9.95,154.96,154.94,3.226]
[1727402499247,3.26522205,154.95,154.92,3.2264]
[1727402499545,13.21522205,154.95,154.92,3.2264]
[1727402499945,9.95,154.95,154.93,3.2263]
[1727402501938,9.95,154.95,154.92,3.2265]
[1727402502342,13.1762,154.95,154.9,10.9904849]
[1727402502546,13.1762,154.95,154.91,10.09660724]
[1727402502753,13.1762,154.95,154.91,3.2267]
[1727402504446,13.1762,154.95,154.92,3.2266]
[1727402504645,6.41852571,154.96,154.91,9.95]
[1727402504848,3.2259,154.96,154.92,6.87142229]
[1727402505145,3.2259,154.96,154.91,9.95]
[1727402505343,6.40743385,154.96,154.92,6.87240286]
[1727402505549,6.40743385,154.96,154.93,3.2264]
[1727402506651,9.95,154.94,154.89,11.3422]
[1727402506848,9.95,154.94,154.9,17.8710304]
[1727402507049,9.95,154.94,154.91,6.87347323]
[1727402507352,9.95,154.94,154.89,11.3422]
[1727402507552,9.95,154.94,154.91,3.2268]
[1727402508551,9.95,154.94,154.92,6.87464343]
[1727402508749,9.95,154.94,154.91,3.2268]
[1727402510156,9.95,154.94,154.92,10.1023007]
[1727402510362,9.95,154.94,154.92,3.2266]
[1727402518167,1.3359,155.0,154.92,9.95]
[1727402518461,1.3359,155.0,154.89,1.3922]
[1727402518661,1.3359,155.0,154.96,13.1756]
[1727402518662,13.175,155.0,154.96,13.1756]
[1727402519267,9.95,154.99,154.96,3.2256]
[1727402523065,9.95,154.98,154.95,3.2259]
[1727402525175,3.225,155.0,154.94,9.95]
[1727402525373,9.95,154.99,154.95,6.87218252]
[1727402525573,9.95,154.99,154.94,9.95]
[1727402525773,3.225,155.0,154.95,6.87217948]
[1727402525974,9.95,154.99,154.94,9.95]
[1727402526175,9.95,154.99,154.95,6.87217091]
[1727402526374,9.95,154.99,154.94,9.95]
[1727402526570,9.95,154.99,154.95,6.87164228]
[1727402526772,9.95,154.99,154.94,9.95]
[1727402526973,9.95,154.99,154.95,6.87164228]
[1727402527172,9.95,154.99,154.97,3.2256]
[1727402529872,9.95,154.99,154.96,3.2257]
[1727402530474,9.95,154.99,154.97,3.2255]
[1727402530678,1.2756,155.03,154.95,9.95]
[1727402530875,9.95,155.01,154.97,9.95]
[1727402531076,1.2756,155.03,154.89,1.3922]
[1727402531077,9.95,155.0,154.98,3.2253]
[1727402533480,9.95,155.0,154.99,3.2252]
[1727402533686,9.95,155.01,154.99,3.2252]
[1727402534277,4.5,155.03,154.99,3.2252]
[1727402534680,9.95,155.02,154.99,3.2252]
[1727402535481,1.2756,155.03,155.0,3.2249]
[1727402535792,9.95,155.01,155.0,3.2249]
[1727402535983,9.95,155.01,154.97,9.95]
[1727402536279,9.95,155.01,154.93,10.98593062]
[1727402536580,9.95,154.97,154.94,17.85168638]
[1727402536785,9.95,154.97,154.95,6.86575576]
[1727402537085,9.95,154.97,154.96,3.2258]
[1727402537888,9.95,155.0,154.95,9.95]
[1727402538284,9.95,155.0,154.97,3.2254]
[1727402541784,9.95,154.99,154.97,3.2254]
[1727402549988,9.95,155.0,154.95,9.95]
[1727402550585,6.01592014,155.04,154.97,9.95]
[1727402550786,9.95,155.02,154.98,9.95]
[1727402551691,9.95,155.02,155.0,3.2249]
[1727402555592,9.95,155.01,154.99,3.2251]
[1727402556287,9.95,155.0,154.95,9.95]
[1727402556486,9.95,154.99,154.96,6.86400713]
[1727402556697,9.95,154.99,154.95,9.95]
[1727402556891,9.95,154.99,154.97,3.2254]
[1727402557291,9.95,155.0,154.97,3.2254]
[1727402557589,9.95,155.0,154.95,9.95]
[1727402557795,9.95,155.0,154.98,3.2253]
[1727402558389,9.95,155.0,154.94,1.3886]
[1727402558390,9.95,155.01,154.96,9.95]
[1727402558594,6.01592014,155.04,154.97,9.95]
[1727402558895,9.95,155.02,154.97,9.95]
[1727402559191,3.28372014,155.04,154.99,9.95]
[1727402559398,9.95,155.09,155.03,9.95]
[1727402559695,4.0329,155.15,155.03,9.95]
[1727402559893,0.9938431,155.14,155.03,9.95]
[1727402560091,9.95,155.09,155.03,9.95]
[1727402560298,4.0329,155.15,155.03,9.95]
[1727402560493,9.95,155.1,155.05,9.95]
[1727402560993,9.95,155.1,155.07,3.2233]
[1727402561693,3.2227,155.11,155.07,3.2233]
[1727402561898,9.95,155.1,155.07,3.2233]
[1727402562398,9.95,155.1,155.08,3.2232]
[1727402563588,3.2223,155.13,155.09,3.2231]
[1727402563794,9.95,155.12,155.09,3.2231]
[1727402564896,9.95,155.12,155.1,3.2228]
[1727402566695,3.2216,155.16,155.12,3.2224]
[1727402566893,9.95,155.15,155.12,3.2224]
[1727402567599,9.95,155.15,155.11,3.2226]
[1727402567797,9.95,155.14,155.11,3.2226]
[1727402572505,9.95,155.14,155.12,3.2224]
[1727402576001,9.95,155.14,155.11,3.2226]
[1727402576202,9.95,155.14,155.08,9.95]
[1727402576503,9.95,155.14,155.1,3.2227]
[1727402577006,9.95,155.14,155.08,9.95]
[1727402577211,9.95,155.13,155.11,3.2227]
[1727402584707,3.222,155.15,155.12,3.2224]
[1727402585007,9.95,155.18,155.12,9.95]
[1727402585203,9.95,155.18,155.14,9.95]
[1727402585409,13.1712,155.18,155.15,3.2217]
[1727402585709,9.95,155.18,155.15,3.2217]
[1727402586406,13.1712,155.18,155.15,3.2217]
[1727402586711,9.95,155.2,155.15,9.95]
[1727402587213,9.95,155.2,155.17,3.2213]
[1727402587807,57.47812711,155.21,155.17,3.2213]
[1727402588009,3.915,155.23,155.18,9.95]
[1727402588212,13.865,155.23,155.18,9.95]
[1727402588513,17.15105143,155.23,155.18,9.95]
[1727402588811,17.15105143,155.23,155.19,3.221]
[1727402588812,10.42135143,155.23,155.19,3.221]
[1727402589010,3.28605143,155.23,155.18,9.95]
[1727402589214,9.95,155.23,155.19,3.2209]
[1727402589415,13.15411542,155.23,155.19,3.2209]
[1727402590214,9.95,155.23,155.19,3.2209]
[1727402590513,9.95,155.23,155.2,3.2208]
[1727402591514,9.95,155.23,155.19,3.2209]
[1727402592012,3.9502,155.27,155.23,3.22]
[1727402592205,9.95,155.27,155.23,3.22]
[1727402592610,9.95,155.27,155.22,9.95]
[1727402593213,6.41364992,155.28,155.22,9.95]
[1727402593406,13.1693,155.27,155.22,9.95]
[1727402593909,9.95,155.25,155.19,9.95]
[1727402594217,13.1698,155.25,155.19,9.95]
[1727402594622,13.1698,155.25,155.21,3.2205]
[1727402596414,13.1698,155.25,155.19,9.95]
[1727402596415,3.22,155.24,155.2,3.2208]
[1727402596623,3.18440261,155.26,155.12,78.7201]
[1727402596624,9.95,155.22,155.12,78.7201]
[1727402596920,9.95,155.22,155.17,9.95]
[1727402597418,9.95,155.22,155.2,3.2208]
[1727402597615,13.1703,155.23,155.2,3.2208]
[1727402598618,3.22,155.24,155.21,3.2206]
[1727402599119,3.22,155.24,155.19,9.95]
[1727402600013,3.22,155.24,155.2,3.2207]
[1727402600317,13.1698,155.25,155.21,9.95]
[1727402600617,9.95,155.27,155.22,9.95]
[1727402601015,9.95,155.26,155.22,9.95]
[1727402601212,9.95,155.25,155.12,1.3801]
[1727402601517,9.95,155.25,155.2,9.95]
[1727402601921,3.22,155.24,155.21,3.2206]
[1727402602222,3.22,155.24,155.21,13.1706]
[1727402602618,13.1698,155.25,155.21,13.1706]
[1727402603523,3.2198,155.25,155.21,13.1706]
[1727402603718,3.2198,155.25,155.22,3.2203]
[1727402607621,13.1698,155.25,155.21,13.1705]
[1727402608723,3.2198,155.25,155.21,13.1705]
[1727402610426,3.191694,155.28,155.21,9.95]
[1727402610726,9.95,155.27,155.21,9.95]
[1727402610929,3.2197,155.26,155.22,3.2203]
[1727402611521,16.43753852,155.27,155.23,3.2201]
[1727402611728,6.48753852,155.27,155.23,3.2201]
[1727402612229,3.2194,155.27,155.23,3.2201]
[1727402613127,13.1694,155.27,155.23,3.2201]
[1727402614730,3.2196,155.26,155.23,3.2201]
[1727402615228,3.2198,155.25,155.22,13.1703]
[1727402615429,13.1698,155.25,155.21,9.95]
[1727402616827,13.1698,155.25,155.22,3.2203]
[1727402617028,13.1698,155.25,155.21,9.95]
[1727402617223,3.22,155.24,155.21,9.95]
[1727402618531,3.2199,155.25,155.21,9.95]
[1727402619332,3.2196,155.26,155.22,9.95]
[1727402619830,3.2196,155.26,155.23,3.2201]
[1727402621126,3.17494478,155.28,155.21,9.95]
[1727402621323,9.95,155.27,155.22,9.95]
[1727402621523,9.95,155.26,155.22,9.95]
[1727402623030,3.2198,155.25,155.22,13.1703]
[1727402623233,3.2198,155.25,155.2,9.95]
[1727402623432,3.2198,155.25,155.21,3.2205]
[1727402623931,3.2198,155.25,155.22,13.1703]
[1727402624831,3.2198,155.25,155.22,9.95]
[1727402626132,9.95,155.24,155.12,78.6801]
[1727402626433,9.95,155.24,155.19,9.95]
[1727402626635,3.2202,155.23,155.2,9.95]
[1727402627835,3.2202,155.23,155.2,13.1707]
[1727402631234,3.2199,155.25,155.2,13.1707]
[1727402631432,13.1699,155.25,155.21,3.2205]
[1727402631730,3.22,155.24,155.21,3.2205]
[1727402632639,3.22,155.24,155.2,13.1707]
[1727402633634,3.2202,155.23,155.2,9.95]
[1727402634141,3.2202,155.23,155.2,13.1708]
[1727402634943,23.4068,155.33,155.22,9.95]
[1727402635141,9.95,155.28,155.22,9.95]
[1727402635343,3.15442134,155.29,155.24,9.95]
[1727402635539,9.95,155.29,155.24,9.95]
[1727402635735,13.24808232,155.29,155.24,9.95]
[1727402636147,3.2192,155.28,155.24,13.1699]
[1727402636441,13.1692,155.28,155.24,9.95]
[1727402636838,13.1692,155.28,155.22,9.95]
[1727402636839,9.95,155.28,155.22,9.95]
[1727402637035,9.95,155.26,155.22,9.95]
[1727402637433,13.1697,155.26,155.21,9.95]
[1727402637743,9.95,155.26,155.21,9.95]
[1727402637943,3.2193,155.27,155.23,13.17]
[1727402638435,3.2193,155.27,155.22,3.2204]
[1727402638436,3.2197,155.26,155.22,3.2204]
[1727402639442,9.95,155.24,155.19,4.0302]
[1727402639845,3.2204,155.22,155.19,7.2511]
[1727402640145,9.95,155.24,155.19,3.2209]
[1727402640342,3.2202,155.23,155.19,3.2209]
[1727402641544,3.2202,155.23,155.19,13.1709]
[1727402644644,3.2202,155.23,155.2,3.2207]
[1727402649345,2.5422,155.27,155.22,9.95]
[1727402649544,11.2722,155.28,155.22,9.95]
[1727402650043,11.2722,155.28,155.15,8.00045823]
[1727402650044,2.6493,155.33,155.25,9.95]
[1727402650243,9.95,155.31,155.25,9.95]
[1727402650852,3.2188,155.3,155.26,3.2195]
[1727402651248,13.1688,155.3,155.26,3.2195]
[1727402651449,3.2188,155.3,155.26,3.2195]
[1727402651647,3.2188,155.3,155.2,3.9451]
[1727402651648,1.3875,155.34,155.28,9.95]
[1727402651846,3.26607348,155.37,155.29,9.95]
[1727402652045,9.95,155.34,155.29,9.95]
[1727402652455,9.95,155.33,155.29,9.95]
[1727402652849,9.95,155.33,155.25,17.78026354]
[1727402652850,9.95,155.32,155.26,6.83817869]
[1727402653054,9.95,155.3,155.23,10.94131382]
[1727402653251,4.109,155.36,155.24,27.72927605]
[1727402653252,9.95,155.29,155.24,27.72927605]
[1727402653447,13.169,155.29,155.25,10.05756223]
[1727402653646,13.169,155.29,155.25,3.2196]
[1727402654446,3.2192,155.28,155.24,13.1699]
[1727402654651,3.2192,155.28,155.25,6.84479584]
[1727402654854,9.95,155.27,155.2,3.9451]
[1727402655054,9.95,155.27,155.22,9.95]
[1727402655256,3.2196,155.26,155.23,6.84657029]
[1727402655455,3.2196,155.26,155.22,13.1702]
[1727402655651,3.2196,155.26,155.23,6.84633058]
[1727402655859,13.1694,155.27,155.23,3.2201]
[1727402656952,13.1694,155.27,155.23,13.1701]
[1727402658360,3.2196,155.26,155.23,9.95]
[1727402661161,9.95,155.26,155.22,9.95]
[1727402661360,9.95,155.26,155.21,3.2205]
[1727402661563,3.2199,155.25,155.21,3.2205]
[1727402663057,3.2199,155.25,155.22,3.2204]
[1727402664758,3.2202,155.23,155.2,3.9451]
[1727402664959,3.2202,155.23,155.08,83.6549953]
[1727402664960,9.95,155.22,155.08,96.5564953]
[1727402665161,9.95,155.22,155.17,9.95]
[1727402665368,9.95,155.21,155.14,9.32876715]
[1727402665560,9.95,155.21,155.18,6.85697505]
[1727402665862,9.95,155.19,155.15,9.95]
[1727402666067,13.1711,155.19,155.16,6.86073346]
[1727402666262,13.1711,155.19,155.15,13.1718]
[1727402667066,13.1711,155.19,155.16,6.86138975]
[1727402667361,13.1711,155.19,155.15,13.1718]
[1727402667562,13.1711,155.19,155.16,6.86092418]
[1727402667763,13.1711,155.19,155.15,13.1718]
[1727402667965,13.1711,155.19,155.16,6.86093723]
[1727402668164,13.1711,155.19,155.16,3.2216]
[1727402668767,9.95,155.19,155.15,9.95]
[1727402668963,9.95,155.22,155.16,16.80985631]
[1727402669161,9.95,155.22,155.16,9.95]
[1727402669867,3.2207,155.21,155.14,1.3127]
[1727402670061,3.2207,155.21,155.16,9.95]
[1727402670261,13.1707,155.21,155.16,9.95]
[1727402670567,13.1707,155.21,155.17,3.2212]
[1727402672871,13.1707,155.21,155.18,3.2212]
[1727402675971,3.2214,155.17,155.12,2.6782]
[1727402676166,9.95,155.14,155.13,17.82117936]
[1727402676363,9.95,155.14,155.08,83.6549953]
[1727402676364,9.95,155.14,155.11,10.96687961]
[1727402676567,9.95,155.13,155.12,6.85670959]
[1727402676964,9.95,155.13,155.09,10.97090348]
[1727402677271,9.95,155.12,155.1,6.8570001]
[1727402677572,26.59450137,155.22,155.09,3.2231]
[1727402677774,26.59450137,155.22,155.1,6.85443245]
[1727402677775,9.95,155.12,155.1,6.85443245]
[1727402677969,9.95,155.12,155.09,3.2231]
[1727402679368,13.1725,155.12,155.08,83.6549953]
[1727402679574,9.95,155.1,155.05,2.7635]
[1727402679770,9.95,155.1,155.09,6.8494046]
[1727402679966,9.95,155.09,155.04,1.3693]
[1727402680171,26.59450137,155.22,155.05,6.84988551]
[1727402680172,9.95,155.07,155.05,6.84988551]
[1727402680374,9.95,155.07,155.03,10.95981928]
[1727402680672,9.95,155.07,155.04,6.84672717]
[1727402680875,9.95,155.06,155.03,10.95981928]
[1727402681176,9.95,155.06,155.03,6.8424425]
[1727402681373,9.95,155.07,155.03,10.0667425]
[1727402681669,9.95,155.07,155.03,3.2243]
[1727402682568,9.95,155.07,155.04,3.2241]
[1727402682873,13.1735,155.07,155.02,9.95]
[1727402683272,13.1735,155.07,155.02,16.78438979]
[1727402683477,9.95,155.06,155.02,9.95]
[1727402683868,9.95,155.06,155.03,3.2243]
[1727402686075,9.95,155.05,155.02,3.2245]
[1727402686475,9.95,155.03,155.0,86.90916148]
[1727402687882,9.95,155.02,155.0,83.68426148]
[1727402688081,9.95,155.02,154.95,13.9398]
[1727402688376,9.95,155.02,154.95,20.75533789]
[1727402688583,9.95,155.0,154.95,20.75533789]
[1727402689082,9.95,155.0,154.95,31.6593708]
[1727402689278,9.95,155.0,154.95,13.9398]
[1727402689479,9.95,155.0,154.99,3.2252]
[1727402693675,3.8773,155.05,154.97,9.95]
[1727402693883,9.95,155.03,154.97,9.95]
[1727402694082,9.95,155.02,154.97,9.95]
[1727402695186,9.95,155.02,154.99,3.225]
[1727402695384,9.95,155.01,154.99,3.225]
[1727402696586,9.95,155.01,155.0,3.2249]
[1727402697282,9.95,155.01,154.92,83.72745981]
[1727402697588,9.95,154.97,154.92,83.72745981]
[1727402697883,9.95,154.95,154.94,3.226]
[1727402700287,3.2256,154.97,154.94,3.226]
[1727402700488,9.95,154.96,154.94,3.226]
[1727402703587,9.95,154.96,154.95,3.226]
[1727402704191,3.8773,155.05,154.96,3.2257]
[1727402704393,9.95,154.97,154.96,3.2257]
[1727402709398,3.8773,155.05,154.93,9.95]
[1727402709399,9.95,154.99,154.93,9.95]
[1727402709597,9.95,154.98,154.93,9.95]
[1727402709792,9.95,154.97,154.92,83.72745981]
[1727402710295,9.95,154.95,154.92,83.72745981]
[1727402711897,9.95,154.95,154.94,3.2262]
[1727402717703,3.8773,155.05,154.98,3.2252]
[1727402717905,3.8773,155.05,154.95,9.95]
[1727402718097,9.95,155.0,154.95,9.95]
[1727402718297,9.95,155.0,154.98,3.2252]
[1727402719200,9.95,155.0,154.92,86.8741777]
[1727402719201,9.95,155.0,154.97,3.2254]
[1727402719408,9.95,154.99,154.97,3.2254]
[1727402720303,9.95,154.98,154.97,3.2254]
[1727402724613,9.95,154.98,154.92,83.72745981]
[1727402724808,9.95,154.96,154.92,83.72745981]
[1727402725007,9.95,154.95,154.92,83.72745981]
[1727402725209,9.95,154.95,154.94,3.226]
[1727402727110,9.95,154.95,154.93,3.2262]
[1727402727414,9.95,154.95,154.92,83.72745981]
[1727402727611,9.95,154.96,154.94,3.2262]
[1727402732912,9.95,154.95,154.94,3.2262]
[1727402733111,9.95,154.95,154.93,3.2263]
[1727402733316,9.95,154.94,154.93,3.2263]
[1727402736721,3.2256,154.97,154.94,3.2262]
[1727402736919,9.95,154.96,154.94,3.2262]
[1727402737921,9.95,154.96,154.95,3.226]
[1727402738117,9.95,154.96,154.91,9.95]
[1727402739818,9.95,154.96,154.94,3.2261]
[1727402740424,54.88169418,155.05,154.92,9.95]
[1727402740617,9.95,154.97,154.92,9.95]
[1727402741825,9.95,154.97,154.95,3.2259]
[1727402743131,9.95,154.96,154.95,3.2259]
[1727402746537,54.88169418,155.05,154.91,9.95]
[1727402746730,9.95,154.97,154.92,9.95]
[1727402747029,9.95,154.97,154.96,3.2258]
[1727402747438,9.95,154.97,154.92,9.95]
[1727402747941,9.95,154.97,154.95,3.2258]
[1727402748437,9.95,154.96,154.95,3.2258]
[1727402749737,3.2254,154.98,154.95,3.2258]
[1727402749931,9.95,154.96,154.95,3.2258]
[1727402752932,3.2254,154.98,154.95,3.2258]
[1727402753129,9.95,154.97,154.95,3.2258]
[1727402753534,9.95,154.97,154.91,9.95]
[1727402753734,9.95,154.97,154.93,9.95]
[1727402753931,54.88169418,155.05,154.94,16.68410643]
[1727402754134,9.95,155.01,154.98,3.2252]
[1727402754331,9.95,155.01,154.95,9.95]
[1727402754536,54.88169418,155.05,154.93,10.77841944]
[1727402754537,3.2241,155.04,155.01,3.2247]
[1727402754739,9.95,155.04,154.99,9.95]
[1727402755135,9.95,155.01,154.97,1.3476]
[1727402756031,9.95,155.01,154.98,3.2253]
[1727402756236,9.95,155.0,154.98,3.2253]
[1727402757035,9.95,154.99,154.98,3.2253]
[1727402761242,9.95,154.99,154.98,9.97223869]
[1727402761644,9.95,154.99,154.98,3.2253]
[1727402761947,9.95,154.99,154.98,9.97212065]
[1727402762548,9.95,155.01,154.99,3.2251]
[1727402762745,9.95,155.01,154.96,9.95]
[1727402762945,9.95,155.01,154.97,6.74732987]
[1727402763144,9.95,155.01,154.98,6.74732987]
[1727402763345,9.95,155.0,154.95,9.95]
[1727402763647,9.95,155.0,154.96,17.5445004]
[1727402763848,9.95,155.0,154.98,3.2252]
[1727402764847,9.95,155.0,154.99,3.2252]
[1727402765744,9.95,155.0,154.98,3.2253]
[1727402767846,3.9724,155.05,154.98,9.95]
[1727402768050,3.9724,155.05,154.92,3.29535279]
[1727402768051,9.95,155.04,154.99,9.95]
[1727402768243,9.95,155.04,155.0,6.74852771]
[1727402768544,9.95,155.04,154.98,9.95]
[1727402768949,9.95,155.04,154.99,17.54307984]
[1727402769250,9.95,155.04,155.0,6.7473384]
[1727402769444,9.95,155.04,155.01,6.7473384]
[1727402769654,9.95,155.04,155.01,3.2246]
[1727402769954,9.95,155.03,155.01,3.2246]
[1727402770347,9.95,155.03,155.0,3.2249]
[1727402771447,13.1744,155.03,155.0,3.2249]
[1727402771646,9.95,155.03,155.01,3.2247]
[1727402773349,3.9724,155.05,154.96,4.0773]
[1727402773545,9.95,154.99,154.97,17.53002668]
[1727402773747,9.95,154.99,154.98,6.74231795]
[1727402774446,9.95,154.99,154.96,10.78819493]
[1727402774651,9.95,154.99,154.97,6.74257159]
[1727402774850,9.95,154.99,154.96,3.2256]
[1727402775055,3.225,155.0,154.94,9.95]
[1727402775256,9.95,154.99,154.95,17.53058259]
[1727402775459,9.95,154.99,154.94,9.95]
[1727402775657,9.95,154.99,154.95,17.53086801]
[1727402775858,9.95,154.99,154.96,6.74264154]
[1727402776059,9.95,154.99,154.97,9.96804154]
[1727402776259,9.95,154.99,154.97,3.2254]
[1727402776857,9.95,154.99,154.98,3.2254]
[1727402777256,3.2246,155.02,154.98,3.2254]
[1727402777560,9.95,155.0,154.98,3.2254]
[1727402788665,3.2246,155.02,154.98,3.2254]
[1727402788961,9.95,155.01,154.98,3.2254]
[1727402789167,9.95,155.01,154.99,3.2251]
[1727402790057,3.2246,155.02,154.99,3.2251]
[1727402790266,9.95,155.01,154.99,3.2251]
[1727402790870,19.37,155.14,155.0,9.95]
[1727402791069,2.6288,155.1,155.02,9.95]
[1727402791360,9.95,155.06,155.02,9.95]
[1727402791868,3.2236,155.07,155.04,3.2241]
[1727402792164,9.95,155.07,155.03,9.95]
[1727402792461,3.2245,155.03,155.0,10.78093771]
[1727402792664,9.95,155.01,154.96,13.8629]
[1727402792861,9.95,155.01,154.97,17.51648554]
[1727402793057,9.95,155.01,154.98,9.96241479]
[1727402793258,9.95,154.99,154.98,3.2253]
[1727402793457,9.95,154.99,154.98,9.96210169]
[1727402793861,9.95,154.99,154.98,3.2253]
[1727402798963,3.2245,155.02,154.98,3.2253]
[1727402799159,9.95,155.0,154.98,3.2253]
[1727402799364,3.2245,155.02,154.99,3.2252]
[1727402799560,9.95,155.0,154.99,3.2252]
[1727402804367,7.2714,155.04,154.97,9.95]
[1727402804569,9.95,155.03,154.98,16.68991542]
[1727402804763,9.95,155.03,154.99,6.73991542]
[1727402804964,9.95,155.03,155.01,3.2246]
[1727402806463,3.2242,155.04,155.01,3.2246]
[1727402806662,9.95,155.03,155.01,3.2246]
[1727402814477,9.95,155.03,155.02,3.2245]
[1727402815878,3.2242,155.04,155.02,3.2245]
[1727402816179,9.95,155.03,155.02,3.2245]
[1727402820579,13.1745,155.03,154.95,1.3343]
[1727402820779,9.95,155.01,154.96,27.18196169]
[1727402820983,9.95,155.01,154.97,17.23196169]
[1727402821189,9.95,155.01,154.99,3.225]
[1727402821486,9.95,155.01,155.0,6.62767757]